bitfinex-derivatives/quotes_ETHF0:USTF0_20210109
["timestamp","ask_amount","ask_price","bid_price","bid_amount"]
[1610225580037,5.75099,1268.9,1268.7,4.00959]
[1610225580541,1.7414,1268.9,1268.7,4.00959]
[1610225581942,1.7414,1268.9,1268.7,67.10119]
[1610225583246,1.7414,1268.9,1268.7,4.00959]
[1610225584047,2.2769,1269.4,1268.8,1.20623187]
[1610225584845,2.2769,1269.4,1267.9,26.43496565]
[1610225585046,53.12636911,1271.4,1268.8,2.2193]
[1610225585245,1.9738,1269.8,1268.8,2.2193]
[1610225585448,53.12124475,1271.5,1268.9,1.20565735]
[1610225585646,53.51509102,1271.6,1268.9,1.20565735]
[1610225585845,1.5867,1270.3,1269.5,4.00959]
[1610225586245,4.00959,1271.3,1269.5,4.00959]
[1610225586645,4.00959,1271.3,1269.5,5.2149268]
[1610225587246,1.5586,1270.3,1269.5,5.2149268]
[1610225588049,1.5586,1270.3,1269.5,31.64989245]
[1610225588247,1.5586,1270.3,1269.5,32.86045565]
[1610225588646,0.39981176,1271.6,1269.5,32.86045565]
[1610225589046,0.39981176,1271.6,1269.5,6.42549]
[1610225589648,1.5754,1270.3,1269.5,32.86045565]
[1610225590248,4.00959,1271.4,1269.5,32.86045565]
[1610225591648,4.00959,1271.4,1269.5,6.42549]
[1610225591848,2.5966,1270.5,1269.5,32.86045565]
[1610225592049,1.7757,1270.0,1269.5,32.86045565]
[1610225592849,1.7757,1270.0,1269.5,6.42549]
[1610225593049,1.7757,1270.0,1269.5,4.00959]
[1610225593250,1.7757,1270.0,1269.5,55.29639]
[1610225595152,1.7757,1270.0,1269.5,56.50141581]
[1610225596153,1.5858,1270.3,1269.5,56.50141581]
[1610225596353,1.5858,1270.3,1269.5,59.10591581]
[1610225596554,2.5966,1270.5,1269.5,59.10591581]
[1610225597554,2.5966,1270.5,1269.5,85.54088146]
[1610225597852,1.588,1270.3,1269.5,85.54088146]
[1610225598255,2.5966,1270.5,1269.5,85.54088146]
[1610225598455,2.5966,1270.5,1269.5,59.10591581]
[1610225598856,1.5529,1270.3,1269.5,59.10591581]
[1610225599057,1.5529,1270.3,1269.5,34.25408146]
[1610225599658,0.39981176,1271.6,1269.5,34.25408146]
[1610225600865,1.588,1270.3,1269.5,35.08469157]
[1610225601262,1.588,1270.3,1269.5,34.25408146]
[1610225601461,0.39981176,1271.6,1269.5,35.29153837]
[1610225601661,0.39981176,1271.6,1270.8,60.586]
[1610225601863,1.96011176,1271.6,1271.5,4.00959]
[1610225602862,0.39981176,1271.6,1271.5,4.00959]
[1610225603263,0.39981176,1271.6,1271.2,65.9075]
[1610225603462,0.39981176,1271.6,1271.5,1.20406852]
[1610225603862,0.39981176,1271.6,1271.5,5.21365852]
[1610225604062,0.39981176,1271.6,1271.5,14.07835852]
[1610225604263,0.39981176,1271.6,1271.5,10.06876852]
[1610225604862,0.39981176,1271.6,1271.5,8.8647]
[1610225606764,0.39981176,1271.6,1270.7,5.0186]
[1610225606968,2.55081176,1271.6,1270.7,5.0186]
[1610225607365,2.55081176,1271.6,1270.7,3.405]
[1610225607866,4.00959,1271.2,1270.8,5.21411781]
[1610225608067,6.26529,1271.2,1270.8,5.21411781]
[1610225608669,2.2557,1271.2,1270.8,1.20452781]
[1610225609269,2.2557,1271.2,1270.9,1.20467085]
[1610225609869,4.00959,1271.0,1270.9,1.20467085]
[1610225610869,4.00959,1271.0,1270.2,64.1497]
[1610225611671,4.00959,1271.0,1270.1,1.20501592]
[1610225611869,4.00959,1270.2,1270.1,1.20501592]
[1610225612069,5.74449,1270.2,1269.5,3.405]
[1610225612270,5.74449,1270.2,1268.6,46.6494]
[1610225613172,5.74449,1270.2,1267.7,10.216]
[1610225613773,5.74449,1270.2,1268.7,1.20633995]
[1610225613972,1.7349,1270.2,1268.7,1.20633995]
[1610225614373,28.79521926,1270.2,1268.7,1.20633995]
[1610225614972,1.7349,1270.2,1268.7,1.20633995]
[1610225615172,1.7349,1270.2,1268.2,46.558]
[1610225615974,1.7349,1270.2,1268.4,4.00959]
[1610225616174,1.7349,1270.2,1268.4,6.30619]
[1610225616378,1.7349,1270.2,1268.7,46.6781]
[1610225616576,1.7349,1270.2,1268.7,2.403]
[1610225616776,1.7349,1270.2,1269.0,48.9908]
[1610225616974,1.7349,1270.2,1269.0,50.9145]
[1610225617174,6.2973,1271.1,1269.0,50.9145]
[1610225617374,2.2557,1271.2,1269.0,57.7255]
[1610225617574,5.9052,1271.5,1269.0,57.7255]
[1610225617976,4.00959,1270.7,1270.4,4.00959]
[1610225618576,1.7728,1270.8,1270.4,4.00959]
[1610225619375,21.55081176,1271.6,1270.4,4.00959]
[1610225619975,21.55081176,1271.6,1270.2,57.6244]
[1610225619976,25.56040176,1271.6,1271.3,4.00959]
[1610225620575,21.55081176,1271.6,1271.3,4.00959]
[1610225621877,4.00959,1271.4,1271.3,4.00959]
[1610225622077,4.00959,1271.4,1270.9,47.0501]
[1610225622276,4.00959,1271.4,1270.5,2.1703]
[1610225623280,4.00959,1271.4,1270.2,46.1448]
[1610225623879,4.00959,1271.4,1271.0,4.00959]
[1610225624479,19.39981176,1271.6,1271.0,4.00959]
[1610225625179,19.39981176,1271.6,1270.9,1.7684]
[1610225625581,73.43751176,1271.6,1270.2,1.7987]
[1610225625782,73.43751176,1271.6,1269.5,65.9785]
[1610225625981,4.00959,1270.0,1269.4,0.20950495]
[1610225626281,4.00959,1270.0,1269.0,10.82059]
[1610225626482,4.00959,1270.0,1269.0,6.811]
[1610225627885,4.00959,1269.7,1269.6,4.00959]
[1610225628085,2.2183,1269.8,1269.6,4.00959]
[1610225629085,2.0219,1270.2,1269.6,4.00959]
[1610225629285,6.1999,1271.4,1269.6,4.00959]
[1610225629684,6.1999,1271.4,1269.7,53.4215]
[1610225629884,6.004,1271.5,1270.6,4.00959]
[1610225630887,6.004,1271.5,1270.3,2.4141]
[1610225631491,6.004,1271.5,1269.7,56.8265]
[1610225631893,4.00959,1269.8,1269.7,3.405]
[1610225632294,4.00959,1269.8,1269.1,4.00959]
[1610225633295,4.00959,1269.8,1269.0,6.811]
[1610225633694,4.00959,1269.8,1269.2,1.20550438]
[1610225634098,1.578,1270.0,1269.2,1.20550438]
[1610225634894,126.3617961,1271.6,1269.2,1.20550438]
[1610225635096,30.0,1271.4,1269.2,1.20550438]
[1610225635295,76.35026492,1271.4,1269.1,3.67222267]
[1610225635498,49.5036,1270.8,1269.1,3.67222267]
[1610225635697,30.0,1270.7,1269.1,3.67222267]
[1610225635896,4.00959,1270.2,1269.9,4.00959]
[1610225636097,2.3579,1270.2,1269.1,3.67222267]
[1610225636699,2.3579,1270.2,1269.1,2.4669]
[1610225637099,2.2241,1270.8,1269.1,2.4669]
[1610225638001,4.00959,1270.5,1270.0,4.00959]
[1610225639606,4.00959,1270.5,1270.1,1.20483029]
[1610225640907,4.00959,1270.5,1270.0,4.00959]
[1610225641106,5.96999,1270.5,1270.0,4.00959]
[1610225641707,1.9604,1270.5,1270.0,4.00959]
[1610225641907,1.9604,1270.5,1270.4,4.00959]
[1610225642308,4.00959,1270.7,1270.4,4.00959]
[1610225642908,2.0881,1271.0,1270.4,4.00959]
[1610225643911,2.0881,1271.0,1270.7,4.00959]
[1610225644910,25.83270176,1271.6,1270.7,4.00959]
[1610225645509,25.83270176,1271.6,1270.7,63.05879]
[1610225645910,25.83270176,1271.6,1271.5,4.00959]
[1610225646411,25.83270176,1271.6,1270.7,59.0492]
[1610225646612,25.83270176,1271.6,1270.6,2.1242]
[1610225647212,25.83270176,1271.6,1270.3,6.0095]
[1610225647412,25.83270176,1271.6,1270.3,3.405]
[1610225648012,4.00959,1271.1,1270.3,7.41459]
[1610225648812,4.00959,1271.1,1270.3,3.405]
[1610225650014,4.00959,1270.4,1270.3,3.405]
[1610225650215,5.99819,1270.4,1270.3,3.405]
[1610225651215,1.9886,1270.4,1270.3,3.405]
[1610225652116,4.00959,1270.6,1270.2,4.00959]
[1610225652517,1.7415,1271.0,1270.2,4.00959]
[1610225654015,1.7415,1271.0,1270.7,4.00959]
[1610225656015,4.00959,1271.2,1270.9,4.00959]
[1610225656216,2.0532,1271.3,1270.9,4.00959]
[1610225656415,21.82311176,1271.6,1270.9,4.00959]
[1610225657215,21.82311176,1271.6,1270.8,1.2041803]
[1610225657616,51.82311176,1271.6,1270.8,1.2041803]
[1610225658015,4.00959,1270.9,1270.6,1.20450307]
[1610225658218,30.0,1270.8,1270.6,1.20450307]
[1610225658617,53.6514,1270.6,1269.2,3.405]
[1610225659419,53.6514,1270.6,1269.3,1.20534973]
[1610225660017,4.00959,1269.4,1269.3,5.21493973]
[1610225660218,1.6934,1270.1,1269.3,5.21493973]
[1610225660418,1.6934,1270.1,1269.3,1.20534973]
[1610225661419,2.1699,1271.0,1269.3,1.20534973]
[1610225662021,4.00959,1270.5,1270.3,4.00959]
[1610225662219,6.45579,1270.5,1269.3,1.20534973]
[1610225662820,2.4462,1270.5,1269.3,1.20534973]
[1610225663019,2.4462,1270.5,1269.4,0.21249967]
[1610225663220,2.4462,1270.5,1269.4,2.78269967]
[1610225663426,2.1699,1271.0,1269.5,0.21231447]
[1610225663619,21.82311176,1271.6,1269.5,0.21231447]
[1610225663821,21.82311176,1271.6,1269.6,0.21222818]
[1610225664020,21.82311176,1271.6,1270.9,4.00959]
[1610225665819,19.39981176,1271.6,1270.9,4.00959]
[1610225666020,19.39981176,1271.6,1271.2,4.00959]
[1610225667423,19.39981176,1271.6,1270.5,59.3539]
[1610225667624,21.88851176,1271.6,1270.5,59.3539]
[1610225667823,21.88851176,1271.6,1270.4,12.2701]
[1610225668024,21.88851176,1271.6,1270.7,4.00959]
[1610225668223,21.88851176,1271.6,1270.6,1.20429044]
[1610225669024,51.88851176,1271.6,1270.6,1.20429044]
[1610225669526,51.88851176,1271.6,1270.5,1.20449129]
[1610225670123,4.00959,1270.6,1270.5,1.20449129]
[1610225670324,36.00689,1270.6,1269.4,3.405]
[1610225670723,48.1144,1269.7,1269.4,3.405]
[1610225670922,30.0,1269.6,1269.4,3.405]
[1610225671123,49.1186,1269.5,1269.4,3.405]
[1610225671323,30.0,1269.5,1268.3,3.405]
[1610225671526,60.6087,1268.7,1268.3,3.405]
[1610225671723,30.0,1268.6,1268.3,3.405]
[1610225672128,4.00959,1268.4,1268.3,3.405]
[1610225672325,36.53179,1268.4,1268.3,3.405]
[1610225673624,36.53179,1268.4,1267.2,3.62108997]
[1610225673824,6.53179,1268.4,1267.2,3.62108997]
[1610225674024,4.00959,1267.9,1267.8,4.00959]
[1610225674623,2.5222,1268.4,1267.8,4.00959]
[1610225676026,4.00959,1268.1,1267.8,4.00959]
[1610225677126,4.00959,1268.1,1267.9,1.20642031]
[1610225677626,1.8826,1268.7,1267.8,5.97089]
[1610225677827,56.5056,1269.5,1267.8,5.97089]
[1610225678027,4.00959,1269.0,1268.7,4.00959]
[1610225678228,1.7082,1269.0,1267.8,1.9613]
[1610225678427,1.7082,1269.0,1267.9,0.21544896]
[1610225678627,1.7082,1269.0,1267.9,1.42138914]
[1610225678827,1.7082,1269.0,1268.1,0.21525019]
[1610225679027,1.7082,1269.0,1268.1,2.73715019]
[1610225679227,1.7082,1269.0,1268.2,0.21515197]
[1610225679426,80.1692,1270.5,1268.2,0.21515197]
[1610225679633,80.1692,1270.5,1268.3,0.21515591]
[1610225679836,50.1692,1270.5,1268.3,11.63673136]
[1610225680035,1.9973,1270.6,1268.3,11.63673136]
[1610225680036,1.9973,1270.6,1270.1,4.00959]
[1610225680235,5.7401,1271.3,1270.1,4.00959]
[1610225681034,35.7401,1271.3,1269.6,8.9938]
[1610225681237,37.404,1271.3,1269.6,8.9938]
[1610225682135,4.00959,1270.4,1270.1,4.00959]
[1610225683138,4.00959,1270.4,1269.6,8.9938]
[1610225683738,34.00959,1270.4,1269.6,8.9938]
[1610225684138,34.00959,1270.4,1269.7,1.20500745]
[1610225685539,34.00959,1270.4,1269.6,8.9938]
[1610225685740,36.08749,1270.4,1269.6,6.811]
[1610225686141,4.00959,1270.1,1269.6,6.811]
[1610225686740,6.43399,1270.1,1269.6,6.811]
[1610225686940,36.43399,1270.1,1269.6,6.811]
[1610225687941,36.43399,1270.1,1269.1,10.185]
[1610225688142,4.00959,1269.5,1269.1,10.185]
[1610225688342,30.0,1269.4,1269.1,10.185]
[1610225688541,30.0,1269.4,1268.3,10.216]
[1610225690048,4.00959,1268.4,1268.3,10.216]
[1610225690247,34.00959,1268.4,1268.3,6.811]
[1610225690446,36.43379,1268.4,1268.3,6.811]
[1610225691146,6.43379,1268.4,1268.3,6.811]
[1610225692549,2.4242,1268.4,1268.3,6.811]
[1610225692750,1.6393,1269.5,1268.3,6.811]
[1610225692751,2.2512,1268.7,1268.3,6.811]
[1610225695856,4.00959,1268.8,1268.3,6.811]
[1610225696654,34.00959,1268.8,1268.3,6.811]
[1610225696856,34.00959,1268.8,1268.4,1.20635606]
[1610225697755,4.00959,1268.8,1268.4,1.20635606]
[1610225698155,4.00959,1268.8,1268.3,6.811]
[1610225698555,6.03139,1268.8,1268.3,6.811]
[1610225700660,56.4744,1268.5,1268.3,6.811]
[1610225700860,29.0,1268.4,1268.3,6.811]
[1610225701465,29.0,1268.4,1267.2,3.405]
[1610225701661,57.0187,1267.9,1267.2,3.405]
[1610225701860,29.0,1267.8,1267.2,3.405]
[1610225702260,4.00959,1267.3,1267.2,3.405]
[1610225702460,35.10789,1267.3,1267.2,3.405]
[1610225702661,35.10789,1267.3,1266.2,3.405]
[1610225702662,62.6523,1266.5,1266.2,3.405]
[1610225703063,64.5342,1266.5,1266.2,3.405]
[1610225703761,29.0,1266.4,1266.2,3.405]
[1610225704162,4.00959,1266.3,1265.6,6.811]
[1610225704562,33.00959,1266.3,1265.6,6.811]
[1610225705463,33.00959,1266.3,1265.7,1.20874721]
[1610225705866,4.00959,1266.3,1265.7,1.20874721]
[1610225708165,4.00959,1266.1,1265.7,1.20874721]
[1610225708367,6.15929,1266.1,1265.7,1.20874721]
[1610225711571,6.15929,1266.1,1265.7,1.42880788]
[1610225711770,2.1497,1266.1,1265.7,1.42880788]
[1610225712172,2.1497,1266.1,1266.0,0.21998397]
[1610225712575,1.8819,1266.5,1266.0,0.21998397]
[1610225712774,2.0983,1267.3,1266.0,0.65934504]
[1610225712972,30.0,1268.1,1266.0,2.91274504]
[1610225713174,64.1394,1268.2,1266.4,0.21971651]
[1610225713373,6.3391,1269.1,1266.4,3.62471651]
[1610225713578,12.6395,1269.1,1266.5,0.21961434]
[1610225713776,12.6395,1269.1,1266.6,0.21988511]
[1610225713973,30.0,1269.0,1266.6,0.21988511]
[1610225714173,4.00959,1268.1,1266.5,0.22005774]
[1610225714373,6.00369,1268.1,1266.5,0.22005774]
[1610225714875,6.00369,1268.1,1266.7,0.21995851]
[1610225715080,6.00369,1268.1,1266.9,0.21970378]
[1610225715673,6.00369,1268.1,1266.7,0.43943701]
[1610225715674,6.00369,1268.1,1266.8,0.21991901]
[1610225716275,6.00369,1268.1,1266.8,4.22950901]
[1610225716476,6.00369,1268.1,1266.9,1.206989]
[1610225716675,6.00369,1268.1,1266.9,1.42698011]
[1610225717075,6.00369,1268.1,1266.9,1.206989]
[1610225717875,57.5194,1267.6,1266.9,1.206989]
[1610225718077,30.0,1267.5,1266.9,1.206989]
[1610225718277,4.00959,1267.0,1266.9,1.206989]
[1610225718477,36.47139,1267.0,1266.9,1.206989]
[1610225719276,36.47139,1267.0,1265.6,6.811]
[1610225719478,36.47139,1267.0,1265.4,3.405]
[1610225719676,51.7655,1266.7,1265.4,3.405]
[1610225719877,30.0,1266.6,1265.4,3.405]
[1610225720276,54.0607,1266.7,1265.4,3.405]
[1610225720678,54.0607,1266.7,1265.5,1.20827537]
[1610225721781,54.0607,1266.7,1265.6,0.22138176]
[1610225722083,54.0607,1266.7,1265.7,0.22137269]
[1610225722283,4.00959,1266.3,1265.9,4.00959]
[1610225722481,1.8707,1266.4,1265.9,4.00959]
[1610225723083,1.8707,1266.4,1265.9,4.23103647]
[1610225723386,1.8707,1266.4,1266.0,1.2078552]
[1610225724186,1.8707,1266.4,1266.1,4.00959]
[1610225726186,1.8707,1266.4,1266.0,1.2078552]
[1610225726586,1.8707,1266.4,1266.2,1.20794433]
[1610225727688,32.2952,1266.7,1266.2,1.20794433]
[1610225728087,32.2952,1266.7,1265.7,1.20815013]
[1610225728286,4.00959,1266.4,1265.7,1.20815013]
[1610225728487,6.45039,1266.4,1265.7,1.20815013]
[1610225729491,6.45039,1266.4,1265.5,1.20826911]
[1610225730192,4.00959,1266.0,1265.5,1.20826911]
[1610225730392,4.00959,1266.0,1265.6,0.22174092]
[1610225730694,4.00959,1266.0,1265.7,0.22168034]
[1610225730993,4.00959,1266.0,1265.8,0.22157778]
[1610225732295,2.4618,1267.0,1265.9,1.20794259]
[1610225732494,6.1793,1267.5,1265.9,1.65060211]
[1610225732794,6.1793,1267.5,1266.1,0.22125716]
[1610225732995,30.0,1267.9,1266.1,2.51385716]
[1610225733195,36.1418,1268.4,1266.1,2.2926]
[1610225733396,36.1418,1268.4,1266.1,2.51379262]
[1610225733594,36.1418,1268.4,1266.2,1.20760058]
[1610225733796,36.1418,1268.4,1266.2,1.42869653]
[1610225734099,36.1418,1268.4,1266.3,0.22106921]
[1610225734296,4.00959,1266.9,1266.3,4.23065921]
[1610225735096,4.00959,1266.9,1266.4,1.2073637]
[1610225735496,4.00959,1266.9,1266.4,3.1012637]
[1610225736396,4.00959,1266.9,1266.5,1.2074883]
[1610225738397,63.314,1267.0,1266.5,1.2074883]
[1610225740197,93.314,1267.0,1266.5,1.2074883]
[1610225740399,4.00959,1266.6,1266.5,1.2074883]
[1610225740602,6.29099,1266.6,1266.5,1.2074883]
[1610225740799,6.29099,1266.6,1266.2,1.20782318]
[1610225742100,6.29099,1266.6,1266.0,1.42938085]
[1610225742300,4.00959,1266.3,1266.0,1.42938085]
[1610225742500,2.2814,1266.6,1266.0,1.42938085]
[1610225743703,2.2814,1266.6,1266.1,1.20780273]
[1610225745606,4.00959,1266.8,1266.1,1.20780273]
[1610225745806,4.00959,1266.8,1266.1,1.43024732]
[1610225746808,4.00959,1266.8,1266.2,1.2076765]
[1610225747707,34.00959,1266.8,1266.2,1.2076765]
[1610225748409,4.00959,1266.4,1266.2,1.2076765]
[1610225748609,30.0,1266.3,1266.2,1.2076765]
[1610225749413,30.0,1266.3,1266.1,1.20825591]
[1610225750412,4.00959,1266.2,1266.1,1.20825591]
[1610225750614,34.00959,1266.2,1266.1,1.20825591]
[1610225750812,34.00959,1266.2,1265.5,1.20850024]
[1610225752213,4.00959,1266.2,1265.5,1.20850024]
[1610225752412,4.00959,1265.8,1265.5,1.20850024]
[1610225754215,30.0,1265.7,1265.5,1.20850024]
[1610225754415,30.0,1265.7,1265.5,1.43204604]
[1610225754718,30.0,1265.7,1265.5,1.20850024]
[1610225755016,30.0,1265.7,1265.5,1.43205646]
[1610225755718,30.0,1265.7,1265.5,1.20850024]
[1610225756418,4.00959,1265.6,1265.4,5.5349]
[1610225756618,34.00959,1265.6,1265.4,5.5349]
[1610225757921,4.00959,1265.6,1265.4,5.5349]
[1610225758122,30.0,1266.3,1265.4,5.5349]
[1610225758324,4.00959,1266.0,1265.4,5.5349]
[1610225758622,2.1238,1266.5,1265.4,5.5349]
[1610225758823,30.0,1266.7,1265.5,0.2234431]
[1610225759123,30.0,1266.7,1265.6,0.22332269]
[1610225759523,30.0,1266.7,1265.8,0.22308458]
[1610225759722,2.5897,1266.8,1265.8,2.63588458]
[1610225759924,30.0,1267.3,1265.8,2.63588458]
[1610225760322,4.00959,1266.9,1266.0,4.00959]
[1610225760524,34.00959,1266.9,1266.0,4.00959]
[1610225761424,4.00959,1266.9,1266.0,4.00959]
[1610225761825,34.00959,1266.9,1266.0,4.00959]
[1610225762625,34.00959,1266.9,1266.1,1.20777169]
[1610225762825,4.00959,1266.9,1266.1,1.20777169]
[1610225763025,2.4059,1267.1,1266.1,1.20777169]
[1610225763427,2.4059,1267.1,1266.1,3.76204682]
[1610225763928,2.0327,1267.5,1266.4,0.2232762]
[1610225764128,86.692,1268.5,1266.4,2.0197762]
[1610225764328,4.00959,1268.2,1267.7,4.00959]
[1610225764529,5.98579,1268.2,1267.7,4.00959]
[1610225765129,35.98579,1268.2,1267.1,53.9483]
[1610225765329,35.98579,1268.2,1267.1,3.405]
[1610225766333,4.00959,1267.2,1267.1,3.405]
[1610225766534,34.00959,1267.2,1267.1,3.405]
[1610225767834,5.91649,1267.2,1267.1,3.405]
[1610225768336,1.9069,1267.2,1267.1,4.61251493]
[1610225768737,4.00959,1267.4,1267.1,4.61251493]
[1610225768935,30.0,1267.5,1267.1,4.61251493]
[1610225769537,1.6288,1267.9,1267.1,4.61251493]
[1610225769736,30.0,1268.1,1267.2,1.20701639]
[1610225769938,30.0,1268.6,1267.3,7.7966]
[1610225770137,30.0,1268.6,1267.2,2.94161639]
[1610225770336,30.0,1268.6,1268.1,4.00959]
[1610225770939,4.00959,1268.7,1268.1,4.00959]
[1610225771339,30.0,1268.6,1268.1,4.00959]
[1610225771539,30.0,1268.6,1268.0,2.5743]
[1610225772139,31.7702,1268.6,1267.7,1.9017]
[1610225772339,4.00959,1268.0,1267.7,1.9017]
[1610225772742,1.7702,1268.6,1267.7,1.9017]
[1610225773339,1.681,1269.2,1267.7,1.9017]
[1610225773743,1.681,1269.2,1267.8,1.20636787]
[1610225774342,5.69059,1269.2,1267.8,1.20636787]
[1610225774542,30.0,1269.1,1267.8,1.20636787]
[1610225774743,30.0,1269.1,1267.8,60.40896787]
[1610225775144,23.0,1268.2,1267.8,60.40896787]
[1610225776346,23.0,1268.2,1268.1,4.00959]
[1610225776543,23.0,1268.2,1268.1,6.61529]
[1610225778348,23.0,1268.2,1268.1,2.6057]
[1610225778548,53.0,1268.2,1268.1,2.6057]
[1610225778750,53.0,1268.2,1267.9,4.00959]
[1610225778950,53.0,1268.2,1267.8,59.2026]
[1610225779350,53.0,1268.2,1267.7,1.9017]
[1610225779749,53.0,1268.2,1267.2,47.9081]
[1610225780350,4.00959,1268.1,1267.8,4.00959]
[1610225780551,30.0,1268.0,1267.2,1.7346]
[1610225780752,30.0,1268.0,1267.1,3.405]
[1610225780753,30.0,1268.0,1267.3,1.20707506]
[1610225781751,30.0,1268.0,1267.3,3.61217506]
[1610225782150,30.0,1268.0,1267.3,2.4051]
[1610225782354,4.00959,1267.4,1267.3,2.4051]
[1610225782552,34.00959,1267.4,1267.3,2.4051]
[1610225782951,34.00959,1267.4,1267.2,1.20746477]
[1610225783351,30.0,1267.4,1267.2,1.20746477]
[1610225783552,2.3968,1267.6,1267.3,1.20730906]
[1610225784354,2.3968,1267.6,1267.5,4.00959]
[1610225784553,2.3968,1267.6,1267.3,1.20730906]
[1610225784753,30.0,1267.9,1267.3,1.20730906]
[1610225784953,30.0,1267.9,1267.2,53.12987891]
[1610225785153,4.00959,1268.0,1267.2,53.12987891]
[1610225785357,4.00959,1268.0,1267.2,53.35294272]
[1610225785754,23.0,1268.2,1267.3,0.22291658]
[1610225786154,23.0,1268.2,1267.4,0.22296262]
[1610225786354,23.0,1268.2,1268.1,4.00959]
[1610225786956,23.0,1268.2,1267.7,1.9918]
[1610225787555,53.0,1268.2,1267.7,1.9918]
[1610225787756,53.0,1268.2,1267.8,1.20667584]
[1610225788356,4.00959,1268.1,1267.8,1.20667584]
[1610225788557,30.0,1268.0,1267.8,1.20667584]
[1610225790459,4.00959,1267.9,1267.5,5.21675439]
[1610225790659,4.00959,1267.9,1267.5,1.20716439]
[1610225790860,30.0,1268.0,1267.5,1.20716439]
[1610225791862,30.0,1268.0,1267.5,2.95246439]
[1610225792062,30.0,1268.0,1267.5,1.7453]
[1610225793266,30.0,1268.0,1267.6,1.2070582]
[1610225794464,30.0,1268.0,1267.8,4.00959]
[1610225794863,30.0,1268.0,1267.6,1.2070582]
[1610225796364,30.0,1268.0,1267.9,4.00959]
[1610225796564,30.0,1268.1,1267.9,4.00959]
[1610225797665,30.0,1268.1,1268.0,1.20672001]
[1610225799468,23.0,1268.2,1268.0,1.20672001]
[1610225800468,23.0,1268.2,1268.1,4.00959]
[1610225801368,53.0,1268.2,1268.1,4.00959]
[1610225801668,53.0,1268.2,1268.1,5.21621342]
[1610225802568,23.0,1268.2,1268.1,5.21621342]
[1610225803470,53.0,1268.2,1268.1,5.21621342]
[1610225804470,23.0,1268.2,1268.1,5.21621342]
[1610225804670,53.0,1268.2,1268.1,5.21621342]
[1610225805670,53.0,1268.2,1268.1,1.20662342]
[1610225806073,23.0,1268.2,1268.1,1.20662342]
[1610225806671,53.0,1268.2,1268.1,1.20662342]
[1610225807073,53.0,1268.2,1267.8,4.00959]
[1610225808473,53.0,1268.2,1267.9,1.20667495]
[1610225809775,59.6002,1268.2,1267.9,1.20667495]
[1610225809978,56.0088,1267.9,1267.6,1.20685803]
[1610225810176,30.0,1267.8,1267.6,1.20685803]
[1610225810377,32.1191,1267.8,1267.6,1.20685803]
[1610225810583,4.00959,1267.7,1267.6,1.20685803]
[1610225810775,34.00959,1267.7,1267.6,1.20685803]
[1610225811376,34.00959,1267.7,1267.2,1.20721238]
[1610225811577,91.36939,1267.7,1267.2,1.20721238]
[1610225812477,4.00959,1267.3,1267.2,1.20721238]
[1610225812677,36.09689,1267.3,1267.2,1.20721238]
[1610225815280,36.09689,1267.3,1267.1,3.405]
[1610225824389,32.0873,1267.3,1267.1,3.405]
[1610225828994,2.0873,1267.3,1267.1,3.405]
[1610225829195,30.0,1267.5,1267.1,3.405]
[1610225829595,30.0,1267.5,1267.2,1.20729858]
[1610225830197,30.0,1268.0,1267.2,1.20729858]
[1610225830696,30.0,1268.0,1267.4,4.00959]
[1610225831197,30.0,1268.0,1267.4,6.58079]
[1610225832298,30.0,1268.0,1267.5,1.20694009]
[1610225832498,30.0,1267.9,1267.5,1.20694009]
[1610225832699,30.0,1267.9,1267.7,4.00959]
[1610225832898,30.0,1267.9,1267.5,1.20694009]
[1610225833407,30.0,1268.1,1267.5,1.20694009]
[1610225834705,4.00959,1267.9,1267.5,1.20694009]
[1610225834905,30.0,1267.8,1267.5,1.20694009]
[1610225836306,30.0,1267.8,1267.2,1.20713897]
[1610225837908,30.0,1268.0,1267.2,1.20713897]
[1610225838711,30.0,1268.0,1267.5,4.00959]
[1610225840914,30.0,1268.0,1267.6,1.20685337]
[1610225844719,4.00959,1267.9,1267.6,1.20685337]
[1610225844920,30.0,1267.8,1267.6,1.20685337]
[1610225845920,30.0,1268.0,1267.6,1.20685337]
[1610225846120,30.0,1267.7,1267.6,1.20685337]
[1610225846320,30.0,1267.7,1267.3,1.20687103]
[1610225846720,30.0,1267.7,1267.6,4.00959]
[1610225847621,30.0,1267.7,1267.6,5.21646254]
[1610225849425,30.0,1267.7,1267.6,1.20687254]
[1610225850027,30.0,1268.0,1267.6,1.20687254]
[1610225850426,30.0,1268.0,1267.5,1.20693955]
[1610225856029,30.0,1268.0,1267.4,1.20694987]
[1610225856730,30.0,1268.0,1267.7,4.00959]
[1610225857331,30.0,1268.0,1267.8,1.2067911]
[1610225858729,30.0,1268.0,1267.9,4.00959]
[1610225859931,30.0,1268.0,1267.8,1.2067911]
[1610225860130,30.0,1268.0,1267.9,1.20667073]
[1610225860930,30.0,1268.0,1267.9,5.21626073]
[1610225861430,30.0,1268.0,1267.9,4.00959]
[1610225863230,30.0,1268.0,1267.9,1.20669369]
[1610225865233,30.0,1268.0,1267.8,4.00959]
[1610225866538,30.0,1267.9,1267.8,4.00959]
[1610225867433,23.0,1268.2,1267.8,4.00959]
[1610225867635,23.0,1268.2,1268.0,45.6997]
[1610225868034,53.0,1268.2,1268.0,45.6997]
[1610225868333,53.0,1268.2,1267.8,7.05909137]
[1610225868933,53.0,1268.2,1268.1,4.00959]
[1610225869634,53.0,1268.2,1267.9,1.20643406]
[1610225870034,55.5207,1268.2,1267.9,1.20643406]
[1610225870634,55.5207,1268.2,1267.6,1.20677727]
[1610225870834,55.5207,1268.2,1267.7,4.00959]